bitfinex-derivatives/quotes_BTCF0:USTF0_20240902
["timestamp","ask_amount","ask_price","bid_price","bid_amount"]
[1725284451804,0.172166,58221.0,58220.0,0.3608]
[1725284452005,1.287446,58221.0,58220.0,0.3608]
[1725284453612,1.504446,58221.0,58220.0,0.3628]
[1725284453806,1.504446,58221.0,58220.0,0.002]
[1725284455414,0.189166,58221.0,58220.0,0.002]
[1725284456310,0.103283,58221.0,58220.0,0.002]
[1725284457213,1.304446,58221.0,58220.0,0.002]
[1725284460018,0.189166,58221.0,58220.0,0.002]
[1725284460814,0.103283,58221.0,58220.0,0.002]
[1725284461521,1.304446,58221.0,58220.0,0.002]
[1725284461719,1.434446,58221.0,58220.0,0.002]
[1725284461908,0.103283,58221.0,58220.0,0.002]
[1725284463614,0.094283,58221.0,58220.0,0.001]
[1725284463808,0.102283,58221.0,58220.0,0.002]
[1725284464419,0.101283,58221.0,58220.0,0.002]
[1725284464725,0.179166,58221.0,58220.0,0.001]
[1725284465029,0.186166,58221.0,58220.0,0.002]
[1725284465327,1.507329,58221.0,58220.0,0.002]
[1725284465618,1.421446,58221.0,58220.0,0.002]
[1725284466724,0.821446,58221.0,58220.0,0.002]
[1725284466923,1.421446,58221.0,58220.0,0.002]
[1725284467320,0.821446,58221.0,58220.0,0.002]
[1725284467723,0.814446,58221.0,58220.0,0.001]
[1725284468029,0.171782,58216.0,58215.0,0.00025765]
[1725284468223,0.172182,58216.0,58215.0,0.00025765]
[1725284469635,0.180182,58216.0,58215.0,0.00125765]
[1725284470847,0.188182,58216.0,58215.0,0.00225765]
[1725284479439,0.23024506,58216.0,58215.0,0.00225765]
[1725284481225,0.43678713,58216.0,58215.0,0.00225765]
[1725284482141,0.28296825,58216.0,58215.0,0.00225765]
[1725284482342,0.43678713,58216.0,58215.0,0.00225765]
[1725284482730,0.35089613,58216.0,58215.0,0.00225765]
[1725284483034,0.19707725,58216.0,58215.0,0.00225765]
[1725284483228,0.25570722,58216.0,58215.0,0.00225765]
[1725284483435,0.35049164,58216.0,58215.0,0.00225765]
[1725284484444,0.102291,58216.0,58215.0,0.00225765]
[1725284485442,0.102291,58216.0,58215.0,0.08814965]
[1725284486143,0.0164,58216.0,58215.0,0.08814965]
[1725284486439,0.0164,58216.0,58215.0,1.20346965]
[1725284487036,0.0164,58216.0,58215.0,0.08814965]
[1725284487342,0.102291,58216.0,58215.0,0.00225765]
[1725284490349,0.102291,58216.0,58215.0,0.36305765]
[1725284490944,0.102291,58216.0,58215.0,0.00125765]
[1725284490945,0.180182,58216.0,58215.0,0.00125765]
[1725284491139,0.187182,58216.0,58215.0,0.00225765]
[1725284492345,0.187182,58216.0,58205.0,0.62076449]
[1725284492346,0.085898,58211.0,58205.0,0.36268]
[1725284492555,0.172212,58206.0,58205.0,0.3608]
[1725284494939,0.178212,58206.0,58205.0,0.3608]
[1725284495546,0.184212,58206.0,58205.0,0.3608]
[1725284496141,0.0124,58206.0,58205.0,1.2762]
[1725284496335,0.36168,58239.0,58205.0,1.2762]
[1725284496336,0.3608,58234.0,58205.0,1.8762]
[1725284496535,0.0278,58233.0,58230.0,0.3612]
[1725284496735,0.0278,58233.0,58232.0,0.0004]
[1725284496936,0.0278,58233.0,58230.0,0.3612]
[1725284497133,0.113675,58233.0,58230.0,0.3612]
[1725284497536,0.006,58231.0,58230.0,0.3612]
[1725284498341,0.002,58231.0,58230.0,0.3622]
[1725284498945,0.002,58231.0,58230.0,0.3632]
[1725284499845,0.002,58231.0,58230.0,0.449079]
[1725284500051,0.04405206,58231.0,58230.0,0.3632]
[1725284500546,0.1383725,58231.0,58230.0,0.0024]
[1725284500749,0.04405206,58231.0,58230.0,0.0014]
[1725284500953,0.21580606,58231.0,58230.0,0.0024]
[1725284501741,0.26852169,58231.0,58230.0,0.0024]
[1725284502171,0.42193791,58231.0,58230.0,0.0024]
[1725284502353,1.53713791,58231.0,58230.0,0.0024]
[1725284502856,1.38372169,58231.0,58230.0,0.0024]
[1725284503152,1.49372169,58231.0,58230.0,0.0024]
[1725284503849,1.85452169,58231.0,58230.0,0.0024]
[1725284504051,1.398954,58231.0,58230.0,0.0024]
[1725284504250,2.024598,58231.0,58230.0,0.0024]
[1725284506549,1.845631,58231.0,58230.0,0.0024]
[1725284507556,1.245631,58231.0,58230.0,0.0024]
[1725284508053,1.845631,58231.0,58230.0,0.0024]
[1725284512952,1.588,58231.0,58226.0,0.00025765]
[1725284513165,1.588,58231.0,58210.0,0.446707]
[1725284513166,0.085907,58211.0,58210.0,0.446707]
[1725284513464,0.0004,58211.0,58210.0,0.65170537]
[1725284513752,0.085903,58214.0,58213.0,0.085904]
[1725284515050,0.085903,58214.0,58213.0,0.088904]
[1725284515753,0.085903,58214.0,58213.0,0.449704]
[1725284516349,0.088903,58214.0,58213.0,0.450704]
[1725284518855,0.092903,58214.0,58213.0,0.448704]
[1725284521482,0.007,58214.0,58213.0,0.448704]
[1725284522957,0.0067417,58214.0,58213.0,1.735872]
[1725284523156,0.0067417,58214.0,58213.0,1.649968]
[1725284523465,0.0067417,58214.0,58213.0,1.735872]
[1725284524254,0.0027417,58214.0,58213.0,1.736872]
[1725284524966,0.0027417,58214.0,58213.0,1.734872]
[1725284525265,0.0027417,58214.0,58213.0,1.8084915]
[1725284525469,0.0027417,58214.0,58213.0,1.739872]
[1725284525663,0.00025765,58219.0,58218.0,0.171792]
[1725284525858,0.00025765,58219.0,58218.0,0.732992]
[1725284526260,0.0004,58227.0,58218.0,0.732992]
[1725284526261,0.0004,58227.0,58218.0,1.67652]
[1725284526472,0.0274,58233.0,58232.0,0.085876]
[1725284526672,0.085863,58241.0,58232.0,0.56982095]
[1725284526673,0.113263,58241.0,58232.0,0.56982095]
[1725284526968,0.113263,58241.0,58240.0,0.285864]
[1725284528566,0.116263,58241.0,58240.0,0.286864]
[1725284528767,0.0304,58241.0,58240.0,0.286864]
[1725284529067,0.0304,58241.0,58240.0,0.29187188]
[1725284529474,0.0304,58241.0,58240.0,0.80699188]
[1725284529666,0.0304,58241.0,58240.0,1.40699188]
[1725284530264,0.0304,58241.0,58240.0,1.40799188]
[1725284530265,0.0334,58241.0,58240.0,1.40799188]
[1725284530777,0.0334,58241.0,58240.0,1.76879188]
[1725284531178,0.0304,58241.0,58240.0,1.76779188]
[1725284531469,0.0334,58241.0,58240.0,1.76879188]
[1725284531881,0.00025765,58246.0,58245.0,0.085857]
[1725284532077,0.00025765,58246.0,58245.0,1.332914]
[1725284532371,0.00025765,58246.0,58245.0,1.847994]
[1725284533876,0.00025765,58246.0,58245.0,1.762137]
[1725284534060,0.00225765,58246.0,58245.0,1.762137]
[1725284534977,0.00225765,58246.0,58245.0,1.162137]
[1725284535174,0.00225765,58246.0,58245.0,0.647057]
[1725284540566,0.08811265,58246.0,58245.0,0.647057]
[1725284540979,0.08811265,58246.0,58245.0,0.5612]
[1725284541276,0.08811265,58246.0,58245.0,0.3612]
[1725284542275,0.17396765,58246.0,58245.0,0.3612]
[1725284542473,0.08811265,58246.0,58245.0,0.3612]
[1725284542872,0.68904765,58246.0,58245.0,0.0004]
[1725284543194,0.22376765,58246.0,58245.0,0.0004]
[1725284543793,0.22376765,58246.0,58228.0,0.3608]
[1725284543794,0.085857,58245.0,58228.0,0.3608]
[1725284543976,0.5612,58236.0,58228.0,0.3608]
[1725284544279,1.19636,58236.0,58228.0,0.3608]
[1725284544470,1.79636,58236.0,58228.0,0.3608]
[1725284544670,2.05397,58236.0,58228.0,0.3608]
[1725284544870,1.93397,58236.0,58228.0,0.3608]
[1725284545271,1.67636,58236.0,58216.0,0.446698]
[1725284545472,0.077298,58217.0,58216.0,0.3608]
[1725284545885,0.077298,58217.0,58214.0,0.2]
[1725284545886,0.085901,58215.0,58214.0,0.2]
[1725284546483,0.086301,58215.0,58214.0,0.2]
[1725284546673,0.076301,58215.0,58214.0,0.2]
[1725284547269,0.080301,58215.0,58214.0,0.201]
[1725284548277,0.090301,58215.0,58214.0,0.202]
[1725284550181,0.00025765,58220.0,58219.0,0.085895]
[1725284550378,0.00025765,58220.0,58219.0,0.647095]
[1725284550772,0.00025765,58220.0,58219.0,0.2004]
[1725284550987,0.00025765,58220.0,58219.0,0.5612]
[1725284551381,0.00925765,58220.0,58219.0,0.5622]
[1725284551770,0.085882,58228.0,58219.0,0.5622]
[1725284551771,0.085882,58228.0,58220.0,0.085893]
[1725284552069,0.085882,58228.0,58227.0,0.0004]
[1725284554376,0.089882,58228.0,58227.0,0.0014]
[1725284555276,0.089882,58228.0,58227.0,0.0024]
[1725284557284,0.089882,58228.0,58227.0,0.088282]
[1725284557285,0.008,58228.0,58227.0,0.088282]
[1725284557476,0.008,58228.0,58227.0,0.09683623]
[1725284558185,0.00025765,58233.0,58232.0,0.085876]
[1725284558377,0.00025765,58233.0,58232.0,0.286276]
[1725284558882,0.00025765,58233.0,58232.0,0.372152]
[1725284559082,0.134155,58247.0,58236.0,0.085869]
[1725284559279,0.134155,58247.0,58246.0,0.286255]
[1725284559481,0.0484,58254.0,58248.0,0.085852]
[1725284559681,0.134244,58254.0,58248.0,0.086252]
[1725284560179,0.04865765,58254.0,58248.0,0.086252]
[1725284560813,0.04865765,58254.0,58248.0,0.087252]
[1725284560814,0.0104,58249.0,58248.0,0.087252]
[1725284561978,0.0104,58249.0,58248.0,0.088252]
[1725284563486,1.48624,58249.0,58246.0,0.00188]
[1725284563689,1.48624,58249.0,58243.0,0.00025765]
[1725284563690,0.085858,58244.0,58243.0,0.00025765]
[1725284563985,0.172116,58244.0,58243.0,0.00025765]
[1725284564183,1.287196,58244.0,58243.0,0.00025765]
[1725284565087,1.691054,58244.0,58243.0,0.00125765]
[1725284566197,0.0084,58244.0,58243.0,0.00125765]
[1725284566377,0.008,58244.0,58243.0,0.08711765]
[1725284566577,0.3608,58279.0,58244.0,0.51504]
[1725284566784,0.3608,58279.0,58271.0,0.2]
[1725284566785,0.085817,58272.0,58271.0,0.2]
[1725284567018,0.085808,58278.0,58266.0,0.2]
[1725284567019,0.3608,58273.0,58266.0,0.2]
[1725284567182,0.085823,58268.0,58266.0,0.2]
[1725284567584,0.0002574,58273.0,58266.0,0.2]
[1725284567792,0.0002574,58273.0,58265.0,0.3608]
[1725284567979,0.085826,58266.0,58265.0,0.3608]
[1725284569985,0.085832,58262.0,58261.0,0.0002574]
[1725284570195,0.3608,58266.0,58261.0,0.2002574]
[1725284570581,0.085829,58264.0,58261.0,0.2002574]
[1725284571286,0.085829,58264.0,58261.0,0.2052574]
[1725284571681,0.085829,58264.0,58261.0,0.2062574]
[1725284571887,0.085829,58264.0,58261.0,0.2022574]
[1725284573081,0.085822,58269.0,58263.0,0.3608]
[1725284573283,0.085822,58269.0,58265.0,0.2]
[1725284573783,0.0002574,58273.0,58268.0,0.3608]
[1725284573988,0.0002574,58273.0,58272.0,0.2]
[1725284574192,0.0002574,58273.0,58272.0,0.2004]
[1725284577199,0.0860724,58273.0,58272.0,0.2014]
[1725284577990,0.0860724,58273.0,58272.0,0.2024]
[1725284579795,0.0860724,58273.0,58272.0,0.0024]
[1725284580586,0.1718874,58273.0,58272.0,0.0024]
[1725284580793,0.9718874,58273.0,58272.0,0.0024]
[1725284581293,1.6925424,58273.0,58272.0,0.0024]
[1725284581794,1.6067274,58273.0,58272.0,0.0024]
[1725284582589,1.6925424,58273.0,58272.0,0.0024]
[1725284583192,1.6067274,58273.0,58272.0,0.0024]
[1725284584501,1.6925424,58273.0,58272.0,0.0024]
[1725284586022,1.6925424,58273.0,58253.0,0.05798632]
[1725284586023,0.257496,58262.0,58245.0,0.00515522]
[1725284586210,0.257496,58262.0,58238.0,0.3608]
[1725284586211,0.085866,58239.0,58238.0,0.3608]
[1725284586904,0.3608,58241.0,58232.0,0.2]
[1725284587098,0.085874,58233.0,58232.0,0.2]
[1725284587298,0.085879,58230.0,58229.0,0.3608]
[1725284588606,0.084879,58230.0,58229.0,0.3608]
[1725284589001,0.085879,58230.0,58229.0,0.3618]
[1725284589199,0.085879,58230.0,58229.0,0.001]
[1725284590514,0.092879,58230.0,58229.0,0.002]
[1725284594107,0.092879,58230.0,58229.0,0.202]
[1725284594609,0.102879,58230.0,58229.0,0.202]
[1725284595231,0.018,58230.0,58229.0,1.3172]
[1725284595408,0.016,58230.0,58229.0,1.402072]
[1725284595810,0.012,58230.0,58229.0,1.402072]
[1725284596616,0.012,58230.0,58229.0,1.40722747]
[1725284596817,0.0861104,58242.0,58240.0,0.085855]
[1725284597009,0.0861104,58242.0,58241.0,0.0004]
[1725284597225,0.0002574,58242.0,58241.0,0.086254]
[1725284598515,0.0002574,58242.0,58241.0,0.0004]
[1725284598516,0.1719614,58242.0,58241.0,0.0004]
[1725284598715,0.1719614,58242.0,58241.0,0.0014]
[1725284599311,0.1729614,58242.0,58241.0,0.0014]
[1725284599712,0.1719614,58242.0,58241.0,0.0014]
[1725284599909,0.1819614,58242.0,58241.0,0.0024]
[1725284600314,0.1819614,58242.0,58241.0,0.0014]
[1725284600515,0.1829614,58242.0,58241.0,0.0014]
[1725284600914,0.3129614,58242.0,58241.0,0.0014]
[1725284601116,0.3129614,58242.0,58241.0,0.0024]
[1725284602611,0.3019614,58242.0,58241.0,0.0014]
[1725284602819,0.3069614,58242.0,58241.0,0.0024]
[1725284603218,0.3928134,58242.0,58241.0,0.0014]
[1725284603415,0.3928134,58242.0,58241.0,0.0024]
[1725284603416,1.5078934,58242.0,58241.0,0.0024]
[1725284604810,1.5078934,58242.0,58241.0,0.0014]
[1725284605017,1.5088934,58242.0,58241.0,0.001001]
[1725284605216,1.8696934,58242.0,58241.0,0.001001]
[1725284606824,0.4529094,58242.0,58241.0,0.001001]
[1725284607125,0.4529094,58242.0,58241.0,0.002]
[1725284607628,0.0921094,58242.0,58241.0,0.002]
[1725284608615,0.0861094,58242.0,58241.0,0.001]
[1725284608828,0.0921094,58242.0,58241.0,0.086854]
[1725284609424,0.0901094,58242.0,58241.0,0.085854]
[1725284609621,0.0042574,58242.0,58241.0,0.085854]
[1725284610017,0.0002574,58242.0,58241.0,0.085854]
[1725284610224,0.0062574,58242.0,58241.0,0.085854]
[1725284611527,0.085831,58257.0,58252.0,0.085837]
[1725284611723,0.0008,58258.0,58256.0,0.086232]
[1725284611924,0.0008,58258.0,58257.0,0.0004]
[1725284612119,0.0008,58258.0,58256.0,0.086232]
[1725284613229,0.0018,58258.0,58256.0,0.086232]
[1725284613934,0.0018,58258.0,58257.0,0.28583]
[1725284614735,0.0018,58258.0,58257.0,0.33333]
[1725284615128,0.0008,58258.0,58257.0,0.33333]
[1725284615740,0.0008,58258.0,58257.0,0.33433]
[1725284616425,0.0008,58258.0,58257.0,0.33733]
[1725284617734,0.0008,58258.0,58257.0,0.33333]
[1725284618542,0.086629,58258.0,58257.0,0.33333]
[1725284622138,0.0008,58258.0,58257.0,0.33333]
[1725284624841,0.0008,58258.0,58257.0,0.33433]
[1725284626132,0.0008,58258.0,58257.0,0.33533]
[1725284627038,0.0008,58258.0,58257.0,0.42016]
[1725284627249,0.0008,58258.0,58257.0,0.33533]
[1725284628147,0.0008,58258.0,58257.0,0.33933]
[1725284628748,0.0008,58258.0,58257.0,0.34433]
[1725284628940,0.0008,58258.0,58257.0,0.70513]
[1725284629243,0.0008,58258.0,58257.0,0.69913]
[1725284629435,0.0008,58258.0,58257.0,0.34033]
[1725284629633,0.0008,58258.0,58257.0,0.70113]
[1725284629835,0.0008,58258.0,58257.0,1.21409]
[1725284630135,0.0008,58258.0,58257.0,1.20909]
[1725284630531,0.0008,58258.0,58257.0,1.29492]
[1725284631147,0.0008,58258.0,58257.0,1.21009]
[1725284631338,0.0008,58258.0,58257.0,0.69513]
[1725284631940,0.0008,58258.0,58257.0,0.70313]
[1725284632639,0.0008,58258.0,58257.0,0.69813]
[1725284632941,0.0008,58258.0,58257.0,0.71013]
[1725284633339,0.0008,58258.0,58257.0,0.69813]
[1725284634241,0.0008,58258.0,58257.0,0.69413]
[1725284634440,0.0008,58258.0,58257.0,0.33333]
[1725284634642,0.0008,58258.0,58257.0,0.69413]
[1725284635947,0.0008,58258.0,58257.0,0.64663]
[1725284636241,0.172458,58258.0,58257.0,0.3608]
[1725284637452,0.172458,58258.0,58257.0,0.5608]
[1725284638443,0.172458,58258.0,58256.0,0.0004]
[1725284638646,0.30489,58257.0,58256.0,0.0004]
[1725284639956,0.171676,58252.0,58245.0,0.41187235]
[1725284640157,0.171676,58252.0,58247.0,0.05107235]
[1725284640346,0.171676,58252.0,58248.0,0.00500953]
[1725284642349,0.171676,58252.0,58251.0,0.0052574]
[1725284643348,0.171676,58252.0,58251.0,0.0062574]
[1725284643547,0.171676,58252.0,58251.0,0.0022574]
[1725284646461,0.171676,58252.0,58251.0,0.0012574]
[1725284646659,0.171676,58252.0,58251.0,0.0022574]
[1725284647960,0.172076,58252.0,58251.0,0.0022574]
[1725284648158,0.172076,58252.0,58251.0,0.0012574]
[1725284648361,0.172076,58252.0,58251.0,0.0022574]
[1725284648664,0.086238,58252.0,58251.0,0.0022574]
[1725284649655,0.086238,58252.0,58251.0,0.0012574]
[1725284649863,0.086238,58252.0,58251.0,0.0002574]
[1725284650461,0.086238,58252.0,58251.0,0.0012574]
[1725284651572,0.172076,58252.0,58251.0,0.0012574]
[1725284652075,0.172076,58252.0,58251.0,0.0022574]
[1725284652563,0.086238,58252.0,58251.0,0.0022574]
[1725284652758,0.086238,58252.0,58251.0,0.0012574]
[1725284652967,0.172076,58252.0,58251.0,0.0022574]
[1725284653169,0.172076,58252.0,58251.0,0.0012574]
[1725284653364,0.172076,58252.0,58251.0,0.0022574]
[1725284658974,0.172076,58252.0,58251.0,4e-07]
[1725284658975,1.572914,58252.0,58251.0,4e-07]
[1725284659165,1.692914,58252.0,58251.0,4e-07]
[1725284659365,1.94600513,58252.0,58251.0,4e-07]
[1725284659574,1.827352,58252.0,58251.0,4e-07]
[1725284659867,1.78355881,58252.0,58251.0,4e-07]
[1725284660269,1.741514,58252.0,58251.0,4e-07]
[1725284660470,1.86060156,58252.0,58251.0,4e-07]
[1725284660973,1.741514,58252.0,58251.0,4e-07]
[1725284661168,1.94643956,58252.0,58251.0,4e-07]
[1725284661473,1.741514,58252.0,58251.0,4e-07]
[1725284662869,1.827352,58252.0,58251.0,4e-07]
[1725284663065,1.741514,58252.0,58251.0,4e-07]
[1725284663381,1.827352,58252.0,58251.0,4e-07]
[1725284663979,1.741514,58252.0,58251.0,4e-07]
[1725284664370,0.457535,58247.0,58246.0,8e-07]
[1725284664564,1.54922,58247.0,58246.0,8e-07]
[1725284664791,2.14962,58247.0,58246.0,8e-07]
[1725284665878,1.94962,58247.0,58246.0,8e-07]
[1725284666972,1.9547042,58247.0,58246.0,8e-07]
[1725284667673,0.257556,58242.0,58241.0,2e-07]
[1725284667884,1.014608,58242.0,58241.0,2e-07]
[1725284668075,2.129688,58242.0,58241.0,2e-07]
[1725284669986,1.329688,58242.0,58241.0,2e-07]
[1725284670176,0.814608,58242.0,58241.0,2e-07]
[1725284670485,0.814608,58242.0,58241.0,0.0010002]
[1725284670667,0.814608,58242.0,58241.0,0.0020002]
[1725284671272,0.814608,58242.0,58241.0,0.0010002]
[1725284671481,0.814608,58242.0,58241.0,0.0020002]
[1725284671727,0.0004,58242.0,58241.0,0.2020002]
[1725284671881,0.0004,58242.0,58241.0,1.5479342]
[1725284672180,0.0004,58242.0,58241.0,1.55195259]
[1725284672385,0.0004,58242.0,58241.0,1.6211988]
[1725284672681,0.0004,58242.0,58241.0,1.0211988]
[1725284673186,0.0004,58242.0,58241.0,1.6211988]
[1725284673369,0.0002574,58252.0,58249.0,0.085842]
[1725284673569,0.0002574,58252.0,58251.0,0.2004]
[1725284673785,0.0002574,58252.0,58251.0,0.0004]
[1725284673786,0.0860954,58252.0,58251.0,0.0004]
[1725284675599,0.0860954,58252.0,58251.0,0.0014]
[1725284675885,0.0860954,58252.0,58251.0,0.0024]
[1725284678076,0.0860954,58252.0,58251.0,0.0014]
[1725284678277,0.0860954,58252.0,58251.0,0.0024]
[1725284680085,0.0860954,58252.0,58251.0,0.088239]
[1725284681681,0.0860954,58252.0,58251.0,0.087239]
[1725284681978,0.0860954,58252.0,58251.0,0.088239]
[1725284683997,0.0860954,58252.0,58251.0,0.087239]
[1725284684175,0.0860954,58252.0,58251.0,0.086239]
[1725284686285,0.0002574,58252.0,58251.0,0.086239]
[1725284686680,0.0002574,58252.0,58251.0,0.372078]
[1725284687882,0.0002574,58252.0,58251.0,0.286239]
[1725284688384,0.0002574,58252.0,58251.0,0.372078]
[1725284688587,0.0002574,58252.0,58251.0,0.802239]
[1725284689182,0.0002574,58252.0,58251.0,0.801239]
[1725284689691,0.0002574,58252.0,58251.0,1.487078]
[1725284689882,0.0002574,58252.0,58251.0,1.53844734]
[1725284690488,0.0002574,58252.0,58251.0,1.53944734]
[1725284691188,0.0002574,58252.0,58251.0,1.488078]
[1725284691383,0.0002574,58252.0,58251.0,1.53944734]
[1725284691583,0.0012,58258.0,58257.0,0.08583]
[1725284691784,0.0012,58258.0,58257.0,0.64703]
[1725284694881,0.087029,58258.0,58257.0,0.08623]
[1725284696192,0.087029,58258.0,58257.0,0.09137504]
[1725284696494,0.0012,58258.0,58257.0,0.09137504]
[1725284696692,0.0012,58258.0,58257.0,0.45217504]
[1725284697893,0.0012,58258.0,58257.0,1.65296504]
[1725284700396,0.0002574,58263.0,58262.0,0.085823]
[1725284700600,0.0002574,58263.0,58262.0,0.74083323]
[1725284700786,0.0858,58278.0,58276.0,0.085802]
[1725284701994,0.085797,58280.0,58272.0,0.3608]
[1725284702200,0.085807,58273.0,58272.0,0.3608]
[1725284703095,0.085807,58273.0,58272.0,0.5608]
[1725284705283,0.085807,58273.0,58272.0,0.5618]
[1725284706197,0.085807,58273.0,58272.0,0.56677743]
[1725284706896,0.085807,58273.0,58272.0,0.56777743]
[1725284707594,0.085807,58273.0,58272.0,0.65358543]
[1725284707891,0.0274,58281.0,58274.0,0.085804]
[1725284708197,0.085803,58276.0,58275.0,0.085804]
[1725284709496,0.20480323,58276.0,58275.0,0.085804]
[1725284709987,0.20480223,58276.0,58275.0,0.12]
[1725284710188,0.21362055,58276.0,58275.0,0.12]
[1725284710395,0.085807,58273.0,58272.0,0.36617743]
[1725284710590,0.20480624,58273.0,58272.0,0.48617743]
[1725284711297,0.12782685,58273.0,58272.0,0.48617743]
[1725284711901,0.12782657,58273.0,58272.0,0.20537743]
[1725284712396,0.085807,58273.0,58272.0,0.20537743]
[1725284712697,0.12782561,58273.0,58272.0,0.20537743]
[1725284712896,0.12782561,58273.0,58272.0,0.20637743]
[1725284713295,0.085807,58273.0,58272.0,0.20737743]
[1725284713591,0.11895831,58275.0,58274.0,0.085805]
[1725284713792,0.11895831,58275.0,58274.0,0.447005]
[1725284714293,0.11895831,58278.0,58277.0,0.085801]
[1725284714502,0.11895831,58280.0,58277.0,0.286201]
[1725284714692,0.20475531,58280.0,58279.0,0.3608]
[1725284714896,0.20475531,58280.0,58279.0,0.3612]
[1725284715200,0.20475531,58280.0,58279.0,0.3608]
[1725284716100,0.20475531,58280.0,58278.0,0.085799]
[1725284716101,0.085798,58279.0,58278.0,0.085799]
[1725284716302,0.20375631,58279.0,58278.0,0.446599]
[1725284716501,0.084798,58279.0,58278.0,0.446599]
[1725284716702,0.083798,58279.0,58278.0,0.446599]
[1725284716897,0.082798,58279.0,58278.0,0.446599]
[1725284719391,0.082798,58279.0,58278.0,0.447599]
[1725284719711,0.0274,58281.0,58280.0,0.085797]
[1725284719891,0.0274,58281.0,58280.0,0.086197]
[1725284720705,0.113195,58281.0,58280.0,0.0004]
[1725284721403,0.113195,58281.0,58280.0,0.00553823]
[1725284721604,0.113195,58281.0,58280.0,0.0004]
[1725284722601,0.113195,58281.0,58280.0,0.0014]
[1725284722903,0.113195,58281.0,58280.0,0.0024]
[1725284723164,0.113195,58281.0,58280.0,1e-06]
[1725284723165,0.913195,58281.0,58280.0,1e-06]
[1725284723330,0.913195,58281.0,58261.0,0.3608]
[1725284723331,0.085807,58273.0,58261.0,0.3608]
[1725284723517,0.493308,58272.0,58261.0,0.3608]
[1725284723704,0.533308,58272.0,58261.0,0.3608]
[1725284723902,1.133956,58272.0,58261.0,0.3608]
[1725284724200,0.533308,58272.0,58263.0,0.00503745]
[1725284724401,0.258316,58272.0,58263.0,0.00503745]
[1725284724797,0.773156,58272.0,58263.0,0.00503745]
[1725284725010,0.257316,58272.0,58263.0,0.00503745]
[1725284725204,0.772156,58272.0,58263.0,0.00503745]
[1725284725400,0.257316,58272.0,58263.0,0.00503745]
[1725284725908,1.372156,58272.0,58263.0,0.00503745]
[1725284726702,1.732956,58272.0,58263.0,0.00503745]
[1725284726897,1.733956,58272.0,58271.0,0.0012574]
[1725284727104,1.133956,58272.0,58271.0,0.0022574]
[1725284727303,1.733956,58272.0,58271.0,0.0022574]
[1725284728215,0.619116,58272.0,58271.0,0.0022574]
[1725284728700,0.704924,58272.0,58271.0,0.0022574]
[1725284729005,0.704924,58272.0,58271.0,0.0012574]
[1725284729201,1.819764,58272.0,58271.0,0.0022574]
[1725284729407,0.085829,58258.0,58257.0,0.2]
[1725284730812,0.085829,58258.0,58257.0,0.205]
[1725284731905,0.085829,58258.0,58257.0,0.21003328]
[1725284732102,0.085829,58258.0,58257.0,1.32499328]
[1725284732324,0.0002574,58263.0,58257.0,1.32999328]
[1725284732501,0.0860794,58263.0,58262.0,0.2004]
[1725284733106,0.0002574,58263.0,58262.0,0.2004]
[1725284733334,0.0002574,58263.0,58262.0,1.401143]
[1725284733909,0.0002574,58263.0,58262.0,1.321143]
[1725284735214,0.0002574,58263.0,58262.0,1.322143]
[1725284735418,0.0022574,58263.0,58262.0,0.722143]
[1725284735615,0.0022574,58263.0,58262.0,1.322143]
[1725284735910,0.0022574,58263.0,58262.0,0.722143]
[1725284736112,0.0002574,58263.0,58262.0,1.340143]
[1725284736809,0.0002574,58263.0,58262.0,1.338143]
[1725284739217,0.0002574,58263.0,58262.0,1.383243]
[1725284739419,0.0002574,58263.0,58262.0,1.375243]
[1725284739609,0.0008,58280.0,58262.0,1.383243]
[1725284739809,0.0008,58280.0,58279.0,0.0004]
[1725284741019,0.0008,58280.0,58279.0,0.086198]
[1725284741721,0.0008,58280.0,58279.0,0.088198]
[1725284742624,0.0008,58280.0,58279.0,0.09619491]
[1725284743313,0.0008,58280.0,58279.0,0.09319491]
[1725284743515,0.0028,58280.0,58279.0,0.09419491]
[1725284744116,0.0028,58280.0,58279.0,0.09519491]
[1725284744828,0.0028,58280.0,58279.0,0.09219491]
[1725284745019,0.0008,58280.0,58279.0,0.09319491]
[1725284745623,0.0008,58280.0,58279.0,0.09419491]
[1725284745828,0.0008,58280.0,58279.0,0.09319491]
[1725284746129,0.0008,58280.0,58279.0,0.61095491]
[1725284746325,0.0008,58280.0,58279.0,0.69675291]
[1725284747023,0.0008,58280.0,58279.0,0.18199291]
[1725284747725,0.0008,58280.0,58279.0,0.18299291]
[1725284748121,0.0008,58280.0,58279.0,0.18099291]
[1725284748327,0.0008,58280.0,58279.0,0.18999291]
[1725284749021,0.0008,58280.0,58279.0,0.19899291]
[1725284749426,0.0008,58280.0,58279.0,0.28479091]
[1725284750421,0.0002574,58285.0,58280.0,0.857948]
[1725284750757,0.10194457,58314.0,58295.0,0.085774]
[1725284750924,0.42814457,58317.0,58308.0,0.5608]
[1725284751129,0.097,58318.0,58308.0,0.5608]
[1725284751130,0.19894457,58318.0,58308.0,0.5608]
[1725284751424,0.19894457,58318.0,58308.0,0.3608]
[1725284751425,0.2,58313.0,58308.0,0.3608]
[1725284751834,0.2,58313.0,58308.0,0.446555]
[1725284752228,0.2,58313.0,58308.0,0.450555]
[1725284752433,0.2,58313.0,58308.0,0.453555]
[1725284753131,0.0002574,58316.0,58310.0,0.085752]
[1725284753331,0.0002574,58316.0,58311.0,0.085751]
[1725284755030,0.0002574,58316.0,58315.0,0.2]
[1725284755234,0.0002574,58316.0,58315.0,0.285745]
[1725284755934,0.10185476,58316.0,58315.0,0.285745]
[1725284756141,0.10185476,58316.0,58315.0,0.29083734]
[1725284756530,0.0002574,58316.0,58315.0,0.29983734]
[1725284757444,0.5146974,58316.0,58315.0,0.009]
[1725284757741,1.4468414,58316.0,58315.0,0.009]
[1725284758038,1.4468414,58316.0,58315.0,0.0094]